[Event "*** Biggest EVER Titled Tuesday"]
[Site "Chess.com"]
[Date "2018.04.17"]
[Round "5"]
[White "SenseiJulio"]
[Black "GameOverBro"]
[Result "1-0"]
[WhiteElo "2622"]
[BlackElo "2442"]
[TimeControl "180+2"]
[EndTime "14:10:33 PDT"]
[Termination "SenseiJulio won by resignation"]

1. Nf3 {[%clk 0:03:01.9]} 1... d6 {[%clk 0:03:00.3]} 2. d4 {[%clk 0:03:01.2]}
2... Nf6 {[%clk 0:03:01.2]} 3. g3 {[%clk 0:02:56.7]} 3... Nbd7 {[%clk
0:03:01.5]} 4. Bg2 {[%clk 0:02:57.9]} 4... e5 {[%clk 0:03:02.4]} 5. O-O {[%clk
0:02:58.1]} 5... Be7 {[%clk 0:03:03.3]} 6. c4 {[%clk 0:02:54.6]} 6... O-O {[%clk
0:03:03.7]} 7. Nc3 {[%clk 0:02:55.5]} 7... c6 {[%clk 0:03:04.5]} 8. e3 {[%clk
0:02:50.4]} 8... a5 {[%clk 0:03:03.2]} 9. b3 {[%clk 0:02:51.1]} 9... Qc7 {[%clk
0:03:03.5]} 10. Bb2 {[%clk 0:02:52.1]} 10... Re8 {[%clk 0:03:03.9]} 11. Rc1
{[%clk 0:02:49.5]} 11... Nf8 {[%clk 0:03:04.2]} 12. c5 {[%clk 0:02:44.3]} 12...
exd4 {[%clk 0:02:47.6]} 13. cxd6 {[%clk 0:02:44.9]} 13... Qxd6 {[%clk
0:02:45.8]} 14. Nxd4 {[%clk 0:02:44.2]} 14... Bg4 {[%clk 0:02:37.3]} 15. Qc2
{[%clk 0:02:39.1]} 15... Rad8 {[%clk 0:02:26.7]} 16. Nf5 {[%clk 0:02:36]} 16...
Bxf5 {[%clk 0:02:16]} 17. Qxf5 {[%clk 0:02:37.9]} 17... Qe6 {[%clk 0:02:16.7]}
18. Qc2 {[%clk 0:02:31.5]} 18... h5 {[%clk 0:02:11.6]} 19. Ne2 {[%clk
0:02:29.3]} 19... Ng6 {[%clk 0:02:09.7]} 20. Nd4 {[%clk 0:02:30.2]} 20... Qc8
{[%clk 0:02:04.7]} 21. Nf5 {[%clk 0:02:31.1]} 21... Qc7 {[%clk 0:01:24.6]} 22.
e4 {[%clk 0:02:12.8]} 22... Ne5 {[%clk 0:01:22.6]} 23. Rcd1 {[%clk 0:01:58.8]}
23... Rxd1 {[%clk 0:01:17.8]} 24. Nxe7+ {[%clk 0:01:56.4]} 24... Rxe7 {[%clk
0:01:10.3]} 25. Rxd1 {[%clk 0:01:58.3]} 25... Rd7 {[%clk 0:01:04.7]} 26. Rxd7
{[%clk 0:01:43.7]} 26... Nfxd7 {[%clk 0:01:06.6]} 27. h3 {[%clk 0:01:39.3]}
27... Qd6 {[%clk 0:01:02.2]} 28. Qc3 {[%clk 0:01:26.1]} 28... Qd1+ {[%clk
0:00:53.2]} 29. Kh2 {[%clk 0:01:24.2]} 29... Qe2 {[%clk 0:00:53.7]} 30. f4
{[%clk 0:01:00.3]} 30... Nf3+ {[%clk 0:00:53.7]} 31. Qxf3 {[%clk 0:01:00.7]}
31... Qxb2 {[%clk 0:00:54.6]} 32. Qxh5 {[%clk 0:00:56.4]} 32... Qxa2 {[%clk
0:00:55.5]} 33. Qg4 {[%clk 0:00:57]} 33... Nf8 {[%clk 0:00:54.7]} 34. Qf3 {[%clk
0:00:54.3]} 34... b5 {[%clk 0:00:52.7]} 35. e5 {[%clk 0:00:55.4]} 35... a4
{[%clk 0:00:53.4]} 36. bxa4 {[%clk 0:00:56.6]} 36... bxa4 {[%clk 0:00:54.6]} 37.
Qxc6 {[%clk 0:00:58]} 37... a3 {[%clk 0:00:54.1]} 38. f5 {[%clk 0:00:50.9]}
38... Qb2 {[%clk 0:00:48.9]} 39. e6 {[%clk 0:00:51.8]} 39... fxe6 {[%clk
0:00:49]} 40. fxe6 {[%clk 0:00:53.7]} 40... Qe5 {[%clk 0:00:49.7]} 41. Qa6
{[%clk 0:00:44.4]} 41... Nxe6 {[%clk 0:00:43]} 42. Qxa3 {[%clk 0:00:45]} 42...
Qe2 {[%clk 0:00:38.1]} 43. Qe7 {[%clk 0:00:39.1]} 43... Kh8 {[%clk 0:00:35]} 44.
h4 {[%clk 0:00:39.3]} 44... Kh7 {[%clk 0:00:33.7]} 45. Qd6 {[%clk 0:00:30.7]}
45... g6 {[%clk 0:00:19.4]} 46. Qd5 {[%clk 0:00:27.8]} 46... Qe3 {[%clk
0:00:18.3]} 47. Be4 {[%clk 0:00:23.1]} 47... Qf2+ {[%clk 0:00:17.6]} 48. Kh3
{[%clk 0:00:22.9]} 48... Qf1+ {[%clk 0:00:18.3]} 49. Bg2 {[%clk 0:00:21.1]}
49... Qf6 {[%clk 0:00:19.6]} 50. Kh2 {[%clk 0:00:21.7]} 50... Ng7 {[%clk
0:00:19.2]} 51. Qe4 {[%clk 0:00:22.1]} 51... Nf5 {[%clk 0:00:20.2]} 52. Qg4
{[%clk 0:00:21.6]} 52... Qe5 {[%clk 0:00:20.5]} 53. Qg5 {[%clk 0:00:21.7]} 53...
Qe2 {[%clk 0:00:20.2]} 54. Kh3 {[%clk 0:00:19.7]} 54... Ne3 {[%clk 0:00:20.8]}
55. Qe7+ {[%clk 0:00:15.2]} 55... Kh6 {[%clk 0:00:22]} 56. Qg5+ {[%clk
0:00:15.9]} 56... Kh7 {[%clk 0:00:23]} 57. Qe7+ {[%clk 0:00:17.4]} 57... Kh6
{[%clk 0:00:24.4]} 58. Qe4 {[%clk 0:00:18.7]} 58... Qf2 {[%clk 0:00:15.2]} 59.
Qf3 {[%clk 0:00:18.2]} 59... Qxg2+ {[%clk 0:00:16.2]} 60. Qxg2 {[%clk 0:00:19]}
60... Nxg2 {[%clk 0:00:18.1]} 61. Kxg2 {[%clk 0:00:20.5]} 61... g5 {[%clk
0:00:19.7]} 62. Kh3 {[%clk 0:00:19.3]} 62... gxh4 {[%clk 0:00:20.8]} 63. Kxh4
{[%clk 0:00:20.3]} 63... Kg6 {[%clk 0:00:19.9]} 64. Kg4 {[%clk 0:00:21.7]} 64...
Kf6 {[%clk 0:00:21]} 65. Kh5 {[%clk 0:00:22.8]} 65... Kg7 {[%clk 0:00:22.2]} 66.
Kg5 {[%clk 0:00:23.4]} 66... Kh7 {[%clk 0:00:23]} 67. Kf6 {[%clk 0:00:24.5]}
67... Kg8 {[%clk 0:00:24.4]} 68. g4 {[%clk 0:00:25.9]} 68... Kf8 {[%clk
0:00:25.3]} 69. Kg6 {[%clk 0:00:26.5]} 69... Kg8 {[%clk 0:00:27.2]} 70. g5
{[%clk 0:00:27.8]} 70... Kh8 {[%clk 0:00:28.5]} 71. Kf7 {[%clk 0:00:28.6]} 71...
Kh7 {[%clk 0:00:30.4]} 72. g6+ {[%clk 0:00:30]} 1-0

[Event "*** Biggest EVER Titled Tuesday"]
[Site "Chess.com"]
[Date "2018.04.17"]
[Round "5"]
[White "Annawel"]
[Black "ZapataCharlesS"]
[Result "0-1"]
[WhiteElo "2859"]
[BlackElo "2703"]
[TimeControl "180+2"]
[EndTime "14:10:41 PDT"]
[Termination "ZapataCharlesS won by resignation"]

1. Nf3 {[%clk 0:03:01.4]} 1... d5 {[%clk 0:02:59.4]} 2. c4 {[%clk 0:03:01.8]}
2... c6 {[%clk 0:03:00.7]} 3. g3 {[%clk 0:03:01.8]} 3... Nf6 {[%clk 0:02:59.8]}
4. Bg2 {[%clk 0:03:03.1]} 4... Bg4 {[%clk 0:02:55.4]} 5. Ne5 {[%clk 0:03:02.1]}
5... Be6 {[%clk 0:02:55.6]} 6. cxd5 {[%clk 0:03:03.4]} 6... Bxd5 {[%clk
0:02:55.3]} 7. Nf3 {[%clk 0:03:04.5]} 7... Nbd7 {[%clk 0:02:52]} 8. Nc3 {[%clk
0:03:04.9]} 8... Bxf3 {[%clk 0:02:52.8]} 9. Bxf3 {[%clk 0:03:06.1]} 9... e6
{[%clk 0:02:54.2]} 10. d4 {[%clk 0:03:06.3]} 10... Be7 {[%clk 0:02:33.8]} 11.
O-O {[%clk 0:03:06.8]} 11... O-O {[%clk 0:02:35.7]} 12. Bg2 {[%clk 0:03:00]}
12... Nd5 {[%clk 0:02:27.6]} 13. e4 {[%clk 0:02:43.4]} 13... Nxc3 {[%clk
0:02:28]} 14. bxc3 {[%clk 0:02:45.3]} 14... Qa5 {[%clk 0:02:28.3]} 15. Bd2
{[%clk 0:02:44.2]} 15... Nb6 {[%clk 0:02:22.7]} 16. Qb3 {[%clk 0:02:43.2]} 16...
c5 {[%clk 0:02:22.8]} 17. Rfd1 {[%clk 0:02:41]} 17... c4 {[%clk 0:02:16.5]} 18.
Qc2 {[%clk 0:02:41.7]} 18... Qa4 {[%clk 0:02:15.2]} 19. Qb1 {[%clk 0:02:29]}
19... e5 {[%clk 0:02:13.9]} 20. dxe5 {[%clk 0:02:27.2]} 20... Bc5 {[%clk
0:02:12.7]} 21. Be1 {[%clk 0:02:27.1]} 21... Rae8 {[%clk 0:02:10.2]} 22. Kh1
{[%clk 0:02:18.1]} 22... Rxe5 {[%clk 0:01:52]} 23. f4 {[%clk 0:02:19.2]} 23...
Ree8 {[%clk 0:01:42.8]} 24. e5 {[%clk 0:02:18.3]} 24... f6 {[%clk 0:01:30.7]}
25. Be4 {[%clk 0:02:03.7]} 25... g6 {[%clk 0:01:24.4]} 26. Bxb7 {[%clk
0:01:22.6]} 26... fxe5 {[%clk 0:01:14]} 27. Bd2 {[%clk 0:01:23]} 27... exf4
{[%clk 0:01:10.1]} 28. Bxf4 {[%clk 0:01:21.4]} 28... Qa5 {[%clk 0:00:55.4]} 29.
Qc2 {[%clk 0:01:17.3]} 29... Be7 {[%clk 0:00:52.4]} 30. Bc6 {[%clk 0:01:14.1]}
30... Rc8 {[%clk 0:00:46.2]} 31. Be4 {[%clk 0:01:15.2]} 31... Bf6 {[%clk
0:00:44]} 32. Rac1 {[%clk 0:01:11.6]} 32... Rfe8 {[%clk 0:00:39.6]} 33. Rd6
{[%clk 0:01:04.9]} 33... Be5 {[%clk 0:00:36.9]} 34. Rcd1 {[%clk 0:00:45.4]}
34... Bxf4 {[%clk 0:00:31.6]} 35. gxf4 {[%clk 0:00:46.5]} 35... Qh5 {[%clk
0:00:33.5]} 36. Rg1 {[%clk 0:00:44.9]} 36... Re7 {[%clk 0:00:19.2]} 37. Qg2
{[%clk 0:00:44.6]} 37... Rf8 {[%clk 0:00:19.7]} 38. Bxg6 {[%clk 0:00:44.1]}
38... hxg6 {[%clk 0:00:16.8]} 39. Rxg6+ {[%clk 0:00:46]} 39... Kf7 {[%clk
0:00:18.3]} 40. Rg7+ {[%clk 0:00:46.8]} 40... Ke8 {[%clk 0:00:17.5]} 41. Qc6+
{[%clk 0:00:44.7]} 41... Rd7 {[%clk 0:00:16.5]} 42. R7g5 {[%clk 0:00:12.5]}
42... Qf7 {[%clk 0:00:13.3]} 43. Re5+ {[%clk 0:00:05.1]} 43... Kd8 {[%clk
0:00:12.1]} 44. f5 {[%clk 0:00:04.9]} 44... Qf6 {[%clk 0:00:10.7]} 45. Qc5
{[%clk 0:00:05.4]} 45... Qd6 {[%clk 0:00:10.9]} 46. Qe3 {[%clk 0:00:05.9]} 46...
Qc6+ {[%clk 0:00:09.3]} 47. Qe4 {[%clk 0:00:04.6]} 47... Qxe4+ {[%clk
0:00:10.3]} 48. Rxe4 {[%clk 0:00:06.5]} 48... Rxf5 {[%clk 0:00:11.6]} 49. a4
{[%clk 0:00:07.6]} 49... Kc7 {[%clk 0:00:12.1]} 50. a5 {[%clk 0:00:08.7]} 50...
Rxa5 {[%clk 0:00:11.9]} 51. h4 {[%clk 0:00:09.6]} 51... Rh5 {[%clk 0:00:12.7]}
52. Kh2 {[%clk 0:00:10.7]} 52... Rdh7 {[%clk 0:00:13.9]} 53. Kh3 {[%clk
0:00:11.9]} 53... Rd5 {[%clk 0:00:15]} 54. Rg3 {[%clk 0:00:11.8]} 54... a5
{[%clk 0:00:15.7]} 55. Kg4 {[%clk 0:00:12.3]} 55... a4 {[%clk 0:00:17.1]} 56.
Rge3 {[%clk 0:00:12.3]} 56... a3 {[%clk 0:00:16.5]} 57. Re2 {[%clk 0:00:13.7]}
57... Ra5 {[%clk 0:00:16.9]} 58. Ra2 {[%clk 0:00:14.8]} 58... Rg7+ {[%clk
0:00:18.3]} 59. Kh3 {[%clk 0:00:16]} 59... Kc6 {[%clk 0:00:18.9]} 60. Re6+
{[%clk 0:00:16.3]} 60... Kc5 {[%clk 0:00:19.8]} 61. Re8 {[%clk 0:00:16.2]} 61...
Nd5 {[%clk 0:00:20.9]} 62. Rc8+ {[%clk 0:00:17.4]} 62... Rc7 {[%clk 0:00:22.4]}
63. Rxc7+ {[%clk 0:00:17.8]} 63... Nxc7 {[%clk 0:00:23.6]} 64. h5 {[%clk
0:00:19.7]} 64... Nb5 {[%clk 0:00:25]} 65. h6 {[%clk 0:00:20.6]} 65... Ra6
{[%clk 0:00:26.5]} 66. Kg4 {[%clk 0:00:18.4]} 66... Rxh6 {[%clk 0:00:26.9]} 67.
Kf4 {[%clk 0:00:18.6]} 0-1

[Event "*** Biggest EVER Titled Tuesday"]
[Site "Chess.com"]
[Date "2018.04.17"]
[Round "5"]
[White "jcibarra"]
[Black "djano"]
[Result "0-1"]
[WhiteElo "2588"]
[BlackElo "2470"]
[TimeControl "180+2"]
[EndTime "14:10:57 PDT"]
[Termination "djano won by resignation"]

1. e4 {[%clk 0:03:01.9]} 1... c5 {[%clk 0:03:00.1]} 2. Nf3 {[%clk 0:03:01.6]}
2... d6 {[%clk 0:03:00.7]} 3. d4 {[%clk 0:03:01]} 3... cxd4 {[%clk 0:03:01.6]}
4. Nxd4 {[%clk 0:03:02.9]} 4... Nf6 {[%clk 0:03:02.9]} 5. Nc3 {[%clk 0:03:03.3]}
5... a6 {[%clk 0:03:04.2]} 6. Be3 {[%clk 0:03:03.4]} 6... e5 {[%clk 0:03:00]} 7.
Nf3 {[%clk 0:03:03.5]} 7... Be7 {[%clk 0:02:58.8]} 8. Bc4 {[%clk 0:03:03.7]}
8... O-O {[%clk 0:02:58.7]} 9. O-O {[%clk 0:03:04.2]} 9... Nbd7 {[%clk 0:02:55]}
10. a4 {[%clk 0:03:03.6]} 10... b6 {[%clk 0:02:53.8]} 11. Bg5 {[%clk 0:02:57.5]}
11... Bb7 {[%clk 0:02:50.4]} 12. Qe2 {[%clk 0:02:57.7]} 12... h6 {[%clk
0:02:26.8]} 13. Bxf6 {[%clk 0:02:57.6]} 13... Nxf6 {[%clk 0:02:24]} 14. Rfd1
{[%clk 0:02:59]} 14... Qc7 {[%clk 0:02:19.2]} 15. Nd5 {[%clk 0:02:43.1]} 15...
Bxd5 {[%clk 0:02:15.6]} 16. Bxd5 {[%clk 0:02:45]} 16... Rac8 {[%clk 0:02:09.5]}
17. c3 {[%clk 0:02:41.3]} 17... Qa7 {[%clk 0:02:03.3]} 18. g3 {[%clk 0:02:32.8]}
18... Rc5 {[%clk 0:02:02.4]} 19. Bb3 {[%clk 0:02:28]} 19... Qb7 {[%clk
0:02:00.3]} 20. Nd2 {[%clk 0:02:18.7]} 20... Rd8 {[%clk 0:01:47.1]} 21. Qf3
{[%clk 0:02:12.4]} 21... b5 {[%clk 0:01:42.5]} 22. a5 {[%clk 0:02:04.3]} 22...
b4 {[%clk 0:01:38.8]} 23. Ra4 {[%clk 0:01:54.6]} 23... bxc3 {[%clk 0:01:37.2]}
24. bxc3 {[%clk 0:01:56.5]} 24... Rdc8 {[%clk 0:01:25.1]} 25. Bc4 {[%clk
0:01:27.3]} 25... Qc6 {[%clk 0:01:00.2]} 26. Rda1 {[%clk 0:01:21.4]} 26... Rb8
{[%clk 0:00:52.2]} 27. Qd3 {[%clk 0:01:18.9]} 27... Rb2 {[%clk 0:00:50.2]} 28.
R1a2 {[%clk 0:01:17.3]} 28... Rxd2 {[%clk 0:00:43.4]} 29. Qxd2 {[%clk
0:00:58.7]} 29... Rxc4 {[%clk 0:00:44.5]} 30. Rxc4 {[%clk 0:00:53.5]} 30... Qxc4
{[%clk 0:00:46.4]} 31. Qe2 {[%clk 0:00:45.6]} 31... Qc6 {[%clk 0:00:38]} 32. Rb2
{[%clk 0:00:35.8]} 32... Qxc3 {[%clk 0:00:35.1]} 33. Rb8+ {[%clk 0:00:36.5]}
33... Kh7 {[%clk 0:00:35.3]} 34. Qxa6 {[%clk 0:00:36.9]} 34... Nxe4 {[%clk
0:00:32.7]} 35. Qe2 {[%clk 0:00:33.3]} 35... Nc5 {[%clk 0:00:28.6]} 36. Rb5
{[%clk 0:00:23.9]} 36... Qa1+ {[%clk 0:00:25.6]} 37. Kg2 {[%clk 0:00:24.5]}
37... e4 {[%clk 0:00:26.9]} 38. Rxc5 {[%clk 0:00:21.3]} 38... dxc5 {[%clk
0:00:25.8]} 39. Qxe4+ {[%clk 0:00:22.8]} 39... Kg8 {[%clk 0:00:25.3]} 40. Qxe7
{[%clk 0:00:23.8]} 40... Qxa5 {[%clk 0:00:26.2]} 41. Qe8+ {[%clk 0:00:25.2]}
41... Kh7 {[%clk 0:00:27.5]} 42. Qxf7 {[%clk 0:00:27.1]} 42... Qa8+ {[%clk
0:00:27.9]} 43. f3 {[%clk 0:00:27.3]} 43... Qc8 {[%clk 0:00:21.7]} 44. Qc4
{[%clk 0:00:27.5]} 44... Qc7 {[%clk 0:00:20.7]} 45. h4 {[%clk 0:00:28]} 45... h5
{[%clk 0:00:20.6]} 46. f4 {[%clk 0:00:26.7]} 46... Qc6+ {[%clk 0:00:20.3]} 47.
Kf2 {[%clk 0:00:27.6]} 47... g6 {[%clk 0:00:19.3]} 48. Qf7+ {[%clk 0:00:27.5]}
48... Kh8 {[%clk 0:00:20.2]} 49. Qf8+ {[%clk 0:00:27.5]} 49... Kh7 {[%clk
0:00:20.7]} 50. Qf7+ {[%clk 0:00:28.9]} 50... Kh8 {[%clk 0:00:21.9]} 51. Ke3
{[%clk 0:00:30.3]} 51... c4 {[%clk 0:00:21.8]} 52. Qf8+ {[%clk 0:00:25.4]} 52...
Kh7 {[%clk 0:00:22.3]} 53. Qe7+ {[%clk 0:00:25.3]} 53... Kh8 {[%clk 0:00:21.5]}
54. Qe5+ {[%clk 0:00:25.9]} 54... Kh7 {[%clk 0:00:22.3]} 55. f5 {[%clk
0:00:21.7]} 55... gxf5 {[%clk 0:00:21]} 56. Qxf5+ {[%clk 0:00:21.6]} 56... Qg6
{[%clk 0:00:21.5]} 57. Qd7+ {[%clk 0:00:20]} 57... Kh6 {[%clk 0:00:19.1]} 58.
Qc7 {[%clk 0:00:17.9]} 58... Qd3+ {[%clk 0:00:19.3]} 59. Kf2 {[%clk 0:00:19.2]}
59... Qd2+ {[%clk 0:00:19.5]} 60. Kf3 {[%clk 0:00:20.1]} 60... Qd3+ {[%clk
0:00:20]} 61. Kf4 {[%clk 0:00:20.1]} 61... Qd4+ {[%clk 0:00:19.9]} 62. Kf5
{[%clk 0:00:20.7]} 62... Qg4+ {[%clk 0:00:19.8]} 63. Kf6 {[%clk 0:00:19]} 63...
Qg6+ {[%clk 0:00:20.9]} 64. Ke7 {[%clk 0:00:18.6]} 64... Qg7+ {[%clk 0:00:21.7]}
0-1

[Event "*** Biggest EVER Titled Tuesday"]
[Site "Chess.com"]
[Date "2018.04.17"]
[Round "5"]
[White "Marcus_Harvey"]
[Black "Shant_Sargsyan"]
[Result "1/2-1/2"]
[WhiteElo "2631"]
[BlackElo "2800"]
[TimeControl "180+2"]
[EndTime "14:11:06 PDT"]
[Termination "Game drawn - insufficient material"]

1. Nf3 {[%clk 0:03:01.9]} 1... d5 {[%clk 0:02:57.1]} 2. g3 {[%clk 0:03:00.7]}
2... g6 {[%clk 0:02:56.2]} 3. Bg2 {[%clk 0:03:02.1]} 3... Bg7 {[%clk 0:02:56.8]}
4. O-O {[%clk 0:03:03.6]} 4... e5 {[%clk 0:02:57.6]} 5. c4 {[%clk 0:03:04.8]}
5... dxc4 {[%clk 0:02:58.4]} 6. Na3 {[%clk 0:03:04.4]} 6... Nc6 {[%clk
0:02:57.8]} 7. Nxc4 {[%clk 0:03:04.8]} 7... Nge7 {[%clk 0:02:59.4]} 8. d3 {[%clk
0:03:05.3]} 8... O-O {[%clk 0:03:00.6]} 9. Rb1 {[%clk 0:03:05.3]} 9... Be6
{[%clk 0:03:01.6]} 10. Ng5 {[%clk 0:03:00.9]} 10... Bd5 {[%clk 0:03:02]} 11. Ne4
{[%clk 0:02:47.2]} 11... a5 {[%clk 0:03:00.7]} 12. Be3 {[%clk 0:02:40]} 12... b6
{[%clk 0:02:58]} 13. Qc1 {[%clk 0:02:39.4]} 13... Nf5 {[%clk 0:02:50.7]} 14. Bg5
{[%clk 0:02:33.5]} 14... f6 {[%clk 0:02:49.6]} 15. Bd2 {[%clk 0:02:34.4]} 15...
Qd7 {[%clk 0:02:41.8]} 16. Ne3 {[%clk 0:02:29.5]} 16... Nxe3 {[%clk 0:02:42]}
17. Bxe3 {[%clk 0:02:27.2]} 17... f5 {[%clk 0:02:39.5]} 18. Nc3 {[%clk
0:02:26.8]} 18... Bxg2 {[%clk 0:02:40.2]} 19. Kxg2 {[%clk 0:02:28.7]} 19... Nd4
{[%clk 0:02:37.3]} 20. Qd2 {[%clk 0:02:15.9]} 20... Rad8 {[%clk 0:02:32.5]} 21.
Rfc1 {[%clk 0:02:15.1]} 21... Rfe8 {[%clk 0:02:21.9]} 22. f3 {[%clk 0:02:13.8]}
22... Qe6 {[%clk 0:02:09.7]} 23. b4 {[%clk 0:02:12]} 23... axb4 {[%clk
0:02:07.2]} 24. Rxb4 {[%clk 0:02:13.6]} 24... Rd7 {[%clk 0:02:07.6]} 25. Nb5
{[%clk 0:02:10.8]} 25... Nxb5 {[%clk 0:02:00.1]} 26. Rxb5 {[%clk 0:02:12]} 26...
e4 {[%clk 0:02:02]} 27. fxe4 {[%clk 0:02:13.1]} 27... fxe4 {[%clk 0:02:02.6]}
28. d4 {[%clk 0:02:13.9]} 28... Rf8 {[%clk 0:01:49.3]} 29. Qc3 {[%clk
0:01:44.5]} 29... c5 {[%clk 0:01:47.5]} 30. Qc4 {[%clk 0:01:32.7]} 30... Qxc4
{[%clk 0:01:47.8]} 31. Rxc4 {[%clk 0:01:34.5]} 31... cxd4 {[%clk 0:01:49.7]} 32.
Bf4 {[%clk 0:01:34.7]} 32... d3 {[%clk 0:01:47.6]} 33. exd3 {[%clk 0:01:34.8]}
33... exd3 {[%clk 0:01:49.5]} 34. Rb1 {[%clk 0:01:33]} 34... Ra8 {[%clk
0:01:47.6]} 35. a4 {[%clk 0:01:30.9]} 35... h5 {[%clk 0:01:43.3]} 36. Kf3 {[%clk
0:01:28.1]} 36... Rf8 {[%clk 0:01:40.5]} 37. h4 {[%clk 0:01:28.9]} 37... Bh6
{[%clk 0:01:17.9]} 38. Rd1 {[%clk 0:01:14.6]} 38... Bxf4 {[%clk 0:00:47.6]} 39.
Rxf4 {[%clk 0:00:52.9]} 39... Rxf4+ {[%clk 0:00:48.3]} 40. Kxf4 {[%clk
0:00:54.3]} 40... Rd4+ {[%clk 0:00:45.6]} 41. Ke3 {[%clk 0:00:55.2]} 41... Rg4
{[%clk 0:00:45.5]} 42. Kf3 {[%clk 0:00:56.5]} 42... Rxa4 {[%clk 0:00:46.9]} 43.
Rxd3 {[%clk 0:00:57.3]} 43... Kg7 {[%clk 0:00:44.6]} 44. Rd6 {[%clk 0:00:57.9]}
44... Ra3+ {[%clk 0:00:41.7]} 45. Kf4 {[%clk 0:00:58.3]} 45... Rb3 {[%clk
0:00:43.1]} 46. Rc6 {[%clk 0:00:56.6]} 46... Rb4+ {[%clk 0:00:43.9]} 47. Kf3
{[%clk 0:00:57.2]} 47... Rb3+ {[%clk 0:00:44.8]} 48. Kg2 {[%clk 0:00:58.4]}
48... Rb1 {[%clk 0:00:45.8]} 49. Kf3 {[%clk 0:00:58]} 49... b5 {[%clk
0:00:46.5]} 50. Rb6 {[%clk 0:00:58.3]} 50... b4 {[%clk 0:00:48]} 51. Kf4 {[%clk
0:00:54.8]} 51... Rf1+ {[%clk 0:00:46.1]} 52. Ke3 {[%clk 0:00:52.7]} 52... Rb1
{[%clk 0:00:44.6]} 53. Kf4 {[%clk 0:00:53.1]} 53... Rf1+ {[%clk 0:00:39.1]} 54.
Ke3 {[%clk 0:00:53.7]} 54... Rg1 {[%clk 0:00:29.3]} 55. Kf4 {[%clk 0:00:54]}
55... Rf1+ {[%clk 0:00:27.9]} 56. Ke3 {[%clk 0:00:54.6]} 56... Rb1 {[%clk
0:00:28.9]} 57. Kf4 {[%clk 0:00:55.4]} 57... Kf7 {[%clk 0:00:25.8]} 58. Kg5
{[%clk 0:00:51.7]} 58... Rg1 {[%clk 0:00:25]} 59. Rf6+ {[%clk 0:00:51.3]} 59...
Ke7 {[%clk 0:00:25.8]} 60. Rf3 {[%clk 0:00:52.5]} 60... Ke6 {[%clk 0:00:13.1]}
61. Kxg6 {[%clk 0:00:52.4]} 61... Kd6 {[%clk 0:00:14.5]} 62. Kxh5 {[%clk
0:00:53.2]} 62... Kc5 {[%clk 0:00:16.4]} 63. g4 {[%clk 0:00:53.7]} 63... Kc4
{[%clk 0:00:17.9]} 64. g5 {[%clk 0:00:54.8]} 64... b3 {[%clk 0:00:19.4]} 65. Rf2
{[%clk 0:00:47.7]} 65... Kc3 {[%clk 0:00:15]} 66. g6 {[%clk 0:00:48.4]} 66... b2
{[%clk 0:00:16.3]} 67. Rxb2 {[%clk 0:00:49.2]} 67... Kxb2 {[%clk 0:00:18.2]} 68.
Kh6 {[%clk 0:00:50.7]} 68... Kc3 {[%clk 0:00:19.6]} 69. h5 {[%clk 0:00:48.6]}
69... Kd4 {[%clk 0:00:20.7]} 70. Kg7 {[%clk 0:00:47.4]} 70... Ke5 {[%clk
0:00:21.8]} 71. h6 {[%clk 0:00:49.3]} 71... Kf5 {[%clk 0:00:22]} 72. h7 {[%clk
0:00:51.2]} 72... Rxg6+ {[%clk 0:00:23]} 73. Kf7 {[%clk 0:00:52.3]} 73... Rf6+
{[%clk 0:00:20.2]} 74. Kg7 {[%clk 0:00:53.6]} 74... Rg6+ {[%clk 0:00:21.2]} 75.
Kf7 {[%clk 0:00:54.8]} 75... Rh6 {[%clk 0:00:12.2]} 76. Kg7 {[%clk 0:00:56]}
76... Kg5 {[%clk 0:00:12.4]} 77. h8=Q {[%clk 0:00:56.3]} 77... Rxh8 {[%clk
0:00:14.3]} 78. Kxh8 {[%clk 0:00:57.9]} 1/2-1/2